bitfinex-derivatives/quotes_ETHF0:USTF0_20250912
["timestamp","ask_amount","ask_price","bid_price","bid_amount"]
[1757708122616,0.2031,4643.5,4642.5,0.2109]
[1757708123008,0.21538,4643.4,4642.5,0.2109]
[1757708123203,0.2031,4643.5,4642.5,0.2109]
[1757708123403,0.21538,4643.4,4642.5,0.2109]
[1757708123815,0.2031,4643.5,4642.5,0.2109]
[1757708124009,0.21538,4643.4,4642.5,0.2109]
[1757708124613,0.2031,4643.5,4642.5,0.2109]
[1757708125016,0.0646,4643.4,4642.5,0.2109]
[1757708125310,0.0646,4643.4,4642.6,0.5418]
[1757708125906,0.0646,4643.4,4643.0,0.2109]
[1757708126111,0.0646,4643.4,4643.3,0.901]
[1757708127502,0.0646,4643.4,4643.1,0.5114]
[1757708127706,0.0646,4643.4,4643.0,0.2109]
[1757708128109,0.0646,4643.4,4643.1,0.5114]
[1757708129810,0.0646,4643.4,4643.0,0.5537]
[1757708130113,0.0646,4643.4,4643.1,0.5114]
[1757708130510,0.0646,4643.4,4643.0,0.2109]
[1757708131917,0.0646,4643.4,4643.1,0.5114]
[1757708132112,0.0646,4643.4,4643.3,1.2138]
[1757708132520,0.226,4644.6,4643.4,0.5114]
[1757708132720,0.76496428,4644.5,4643.6,0.5114]
[1757708132921,0.54962428,4644.4,4643.6,0.5114]
[1757708133216,0.21534,4644.5,4643.6,0.5114]
[1757708133418,0.54960495,4644.4,4643.7,0.3428]
[1757708133720,0.226,4644.6,4643.8,0.5114]
[1757708133914,0.54960638,4644.5,4643.8,0.5114]
[1757708134114,0.54960638,4644.4,4643.8,0.5114]
[1757708134311,0.226,4644.6,4643.5,0.2144]
[1757708134618,0.54958493,4644.5,4643.6,0.5114]
[1757708134817,0.226,4644.6,4643.6,0.5114]
[1757708134818,0.54958493,4644.4,4643.6,0.5114]
[1757708135021,0.57159371,4644.3,4643.6,0.5114]
[1757708135221,0.57159371,4644.2,4643.6,0.5114]
[1757708135414,0.226,4644.6,4643.0,0.2109]
[1757708135615,0.78691892,4644.5,4643.1,0.5114]
[1757708135815,0.57157892,4644.4,4643.1,0.3428]
[1757708136020,0.78691892,4644.4,4643.3,0.5114]
[1757708136321,0.57157892,4644.3,4643.5,0.2144]
[1757708136522,0.57157892,4644.2,4643.6,0.5114]
[1757708136721,0.57157892,4644.1,4643.5,0.2144]
[1757708136919,0.79657892,4644.0,4643.6,0.5114]
[1757708137117,0.57156208,4643.9,4643.5,0.2144]
[1757708137318,4.225,4644.0,4643.5,0.2144]
[1757708137519,0.57152518,4643.9,4643.5,0.2144]
[1757708137821,4.225,4644.0,4643.5,0.2144]
[1757708138019,0.57153257,4643.9,4643.6,0.5114]
[1757708138219,4.225,4644.0,4643.0,0.5537]
[1757708138529,0.57153507,4643.9,4643.3,0.5114]
[1757708138713,0.57153507,4643.8,4643.1,0.8542]
[1757708138918,0.225,4644.0,4643.2,0.3428]
[1757708139113,0.57153761,4643.9,4643.3,0.5114]
[1757708139319,0.57153761,4643.8,4643.6,0.5114]
[1757708139518,0.0645,4644.3,4643.6,0.8542]
[1757708139720,0.79652154,4644.2,4643.6,0.5114]
[1757708139921,0.57152154,4644.1,4643.5,0.2144]
[1757708140124,0.57152154,4644.0,4643.6,0.5114]
[1757708140322,0.57152154,4643.9,4643.6,0.8542]
[1757708140521,0.225,4644.2,4644.0,0.2144]
[1757708140721,0.57154256,4644.1,4644.0,0.7258]
[1757708142025,0.79654256,4644.1,4644.0,0.7258]
[1757708142939,4.79654256,4644.1,4643.5,0.7258]
[1757708143229,0.57154256,4644.0,4643.0,1.0651]
[1757708143429,0.57154256,4644.0,4643.1,0.5114]
[1757708144225,0.18333539,4643.9,4643.1,0.5114]
[1757708144426,0.75487795,4643.8,4643.5,0.2144]
[1757708144628,0.75487795,4643.7,4643.5,0.2144]
[1757708144827,0.225,4644.1,4643.6,0.5114]
[1757708145028,0.75551457,4644.0,4643.6,0.5114]
[1757708145228,0.75551457,4643.9,4643.6,0.5114]
[1757708145428,0.75551457,4643.8,4643.5,0.2144]
[1757708145628,0.75551457,4643.7,4643.6,0.5114]
[1757708146033,4.75551457,4643.7,4643.6,0.5114]
[1757708148023,0.98051457,4643.7,4643.6,0.5114]
[1757708148229,0.98051457,4643.7,4643.6,0.8542]
[1757708148431,0.75551457,4643.7,4643.6,1.2022]
[1757708148625,0.98051457,4643.7,4643.6,1.2022]
[1757708149233,0.75551457,4643.7,4643.6,1.2022]
[1757708149435,0.57213119,4643.7,4643.6,1.2022]
[1757708149931,0.5730285,4644.7,4644.6,0.5046]
[1757708150137,0.7970285,4644.7,4644.6,0.5046]
[1757708150928,0.5730285,4644.7,4644.6,0.5046]
[1757708151133,0.7970285,4644.7,4644.6,0.5046]
[1757708151833,0.5730285,4644.7,4644.6,0.5046]
[1757708152039,0.7970285,4644.7,4644.6,0.5046]
[1757708152538,0.5730285,4644.7,4644.6,0.8618]
[1757708152739,0.5730285,4644.7,4644.6,1.2098]
[1757708153340,0.224,4644.8,4644.6,1.2098]
[1757708153641,0.0645,4644.9,4644.8,0.5046]
[1757708153836,0.2885,4644.9,4644.8,1.2098]
[1757708154435,0.86127762,4644.9,4644.8,1.2098]
[1757708154636,0.63727762,4644.9,4644.8,1.2098]
[1757708154939,0.86127762,4644.9,4644.8,1.2098]
[1757708155638,0.63727762,4644.9,4644.8,1.2098]
[1757708155840,0.86127762,4644.9,4644.8,1.2098]
[1757708156334,0.2885,4644.9,4644.8,1.2098]
[1757708157040,0.63672478,4644.9,4644.8,1.2098]
[1757708157341,0.0645,4644.9,4644.8,1.2098]
[1757708160446,18.601,4645.3,4645.2,3.7596]
[1757708160744,19.39664142,4645.3,4645.2,3.7596]
[1757708161236,19.39664142,4645.3,4645.2,3.4205]
[1757708162648,19.39664142,4645.3,4644.5,0.2136]
[1757708162649,23.39664142,4645.3,4644.8,3.2078]
[1757708162836,0.79564142,4645.2,4645.1,0.5012]
[1757708164145,4.79564142,4645.2,4645.1,0.5012]
[1757708167847,0.79564142,4645.2,4645.1,1.2004]
[1757708168849,0.79564142,4645.2,4645.1,0.5012]
[1757708170247,0.79564142,4645.2,4645.0,0.2064]
[1757708170548,0.57164142,4645.1,4645.0,0.7076]
[1757708173549,0.57164142,4645.1,4645.0,1.0467]
[1757708174245,0.57164142,4645.1,4645.0,0.7076]
[1757708175150,0.4892,4644.8,4644.0,3.2078]
[1757708175446,0.6824,4644.1,4644.0,4.1134]
[1757708175642,1.47804142,4644.1,4644.0,4.1134]
[1757708176043,1.96724142,4644.1,4644.0,4.1134]
[1757708176243,1.47804142,4644.1,4644.0,4.1134]
[1757708177147,1.47804142,4644.1,4644.0,4.6146]
[1757708181757,0.79564142,4644.1,4644.0,4.6146]
[1757708183258,1.14374142,4644.1,4644.0,4.6146]
[1757708183452,1.96724142,4644.1,4644.0,4.6146]
[1757708184455,1.96724142,4644.1,4644.0,1.4068]
[1757708184856,1.96724142,4644.1,4644.0,1.2004]
[1757708186149,1.96724142,4644.1,4644.0,0.8403]
[1757708186350,1.96724142,4644.1,4644.0,0.5012]
[1757708186551,0.4892,4644.0,4643.5,4.1134]
[1757708186862,1.14084142,4643.9,4643.5,4.1134]
[1757708187156,0.3624,4643.7,4643.6,1.2529]
[1757708187356,0.93404142,4643.7,4643.6,1.2529]
[1757708187962,1.28734142,4643.7,4643.6,1.2529]
[1757708188153,1.85654142,4643.7,4643.6,1.2529]
[1757708189563,2.08054142,4643.7,4643.6,1.2529]
[1757708190267,0.5692,4643.6,4643.0,3.2078]
[1757708190455,1.2849,4643.6,4643.5,0.9228]
[1757708190754,1.85415627,4643.6,4643.5,1.2529]
[1757708190961,1.85415627,4643.6,4643.5,1.4724]
[1757708192760,1.85415627,4643.6,4643.5,1.2529]
[1757708194960,1.28495627,4643.6,4643.5,1.4724]
[1757708195160,0.56925627,4643.6,4643.5,4.6802]
[1757708195361,1.15565627,4643.6,4643.5,4.6802]
[1757708197065,0.79325627,4643.6,4643.5,4.6802]
[1757708197562,0.56925627,4643.6,4643.5,4.6802]
[1757708197762,0.79325627,4643.6,4643.5,4.6802]
[1757708199859,0.56925627,4643.6,4643.5,4.6802]
[1757708200064,18.608,4644.2,4643.5,4.6802]
[1757708200065,18.608,4644.2,4644.1,1.2529]
[1757708200366,18.832,4644.2,4644.1,4.4607]
[1757708201559,20.1169,4644.2,4644.1,4.4607]
[1757708201759,19.8929,4644.2,4644.1,4.4607]
[1757708201966,20.1169,4644.2,4644.1,4.4607]
[1757708202971,18.608,4644.2,4644.1,4.4607]
[1757708203163,18.608,4644.2,4644.1,8.4607]
[1757708203470,0.5692,4644.9,4644.1,8.12942]
[1757708203772,1.2849,4644.9,4644.8,4.4607]
[1757708204077,1.5089,4644.9,4644.8,4.4607]
[1757708204369,1.5089,4644.9,4644.8,1.2529]
[1757708206968,0.1967,4645.5,4644.8,1.2529]
[1757708207174,1.3149,4645.6,4645.5,1.3101]
[1757708207472,1.5389,4645.6,4645.5,1.3101]
[1757708208063,18.609,4645.7,4645.6,0.5441]
[1757708208269,18.833,4645.7,4645.6,1.3101]
[1757708209470,19.7707,4645.7,4645.6,1.3101]
[1757708212170,20.33924689,4645.7,4645.6,1.3101]
[1757708213267,20.71644689,4645.7,4645.6,1.3101]
[1757708218577,20.71644689,4645.7,4645.6,0.766]
[1757708219885,20.1479,4645.7,4645.6,0.766]
[1757708220273,20.1479,4645.7,4645.3,3.2078]
[1757708220477,1.2899,4645.4,4645.3,3.2078]
[1757708220783,1.5139,4645.4,4645.3,3.5921]
[1757708221188,1.5139,4645.4,4645.3,3.2078]
[1757708221577,2.08171218,4645.4,4645.3,3.2078]
[1757708224180,0.5496,4644.2,4643.8,1.3002]
[1757708224383,1.5035,4644.5,4644.4,3.5921]
[1757708224583,1.7275,4644.5,4644.4,3.5921]
[1757708224780,1.7275,4644.5,4644.4,3.2078]
[1757708225481,2.29240679,4644.5,4644.4,3.2078]
[1757708226185,0.2136,4644.0,4643.3,3.2078]
[1757708226388,0.9539,4644.0,4643.9,1.3002]
[1757708226686,1.1779,4644.0,4643.9,1.3002]
[1757708226883,1.7275,4644.0,4643.9,1.3002]
[1757708227279,1.7275,4644.0,4643.9,0.742]
[1757708228081,1.7275,4644.0,4643.9,0.3843]
[1757708228276,2.29295251,4644.0,4643.9,0.742]
[1757708228488,2.07935251,4644.0,4643.9,1.3002]
[1757708228983,3.2078,4645.4,4644.0,0.2603]
[1757708229176,3.2078,4646.4,4645.4,1.0023]
[1757708229384,0.5496,4645.9,4645.8,0.742]
[1757708229585,0.5496,4645.9,4645.8,1.0023]
[1757708229985,0.224,4646.2,4645.9,0.2603]
[1757708230187,0.224,4646.2,4646.1,1.0023]
[1757708231387,3.2078,4646.9,4646.7,0.2603]
[1757708231589,0.7736,4646.8,4646.7,1.0023]
[1757708232187,0.9012,4646.8,4646.7,0.742]
[1757708232393,0.7736,4646.8,4646.7,1.0023]
[1757708233399,0.9012,4646.8,4646.7,1.0023]
[1757708233697,0.7736,4646.8,4646.7,1.0023]
[1757708233893,0.5496,4646.8,4646.7,1.0023]
[1757708234195,0.7736,4646.8,4646.7,4.2101]
[1757708235491,1.1252,4646.8,4646.7,3.9498]
[1757708236193,0.0645,4647.1,4647.0,0.742]
[1757708236398,0.0645,4647.1,4647.0,1.0023]
[1757708236592,0.224,4647.2,4647.1,0.2603]
[1757708236793,0.5496,4647.6,4647.1,1.0023]
[1757708236994,0.5652,4647.5,4647.4,0.742]
[1757708237294,1.7275,4647.5,4647.4,0.742]
[1757708237499,1.1779,4647.5,4647.2,3.2078]
[1757708237699,1.2899,4647.3,4647.2,3.5921]
[1757708238501,1.2899,4647.3,4647.2,3.2078]
[1757708238900,1.2899,4647.3,4647.2,3.5921]
[1757708239394,1.2899,4647.3,4647.2,3.9498]
[1757708239901,1.5139,4647.3,4647.2,3.9498]
[1757708240697,1.5139,4647.3,4647.2,3.5921]
[1757708240898,0.2136,4647.0,4646.7,3.2078]
[1757708241098,1.2899,4646.8,4646.7,3.5921]
[1757708241496,1.2899,4646.8,4646.7,0.3843]
[1757708241698,1.2899,4646.8,4646.7,0.742]
[1757708243004,1.2899,4646.8,4646.7,3.9498]
[1757708244203,1.1148,4647.5,4647.4,0.742]
[1757708244399,2.28571213,4647.5,4647.4,0.742]
[1757708244602,2.06171213,4647.5,4647.4,0.742]
[1757708244798,2.28571213,4647.5,4647.4,0.742]
[1757708245198,2.06171213,4647.5,4647.4,0.742]
[1757708245502,1.33181213,4647.5,4647.4,1.0023]
[1757708245695,1.10781213,4647.5,4647.4,1.0023]
[1757708245901,0.2885,4647.6,4647.5,1.0023]
[1757708246707,0.0645,4647.6,4647.5,1.0023]
[1757708247600,1.3544,4647.6,4647.5,0.742]
[1757708249798,1.5774,4647.6,4647.5,0.742]
[1757708251101,1.2899,4647.3,4647.2,3.2078]
[1757708251308,0.2349,4647.0,4646.7,3.2078]
[1757708251504,0.2349,4647.0,4646.2,3.2078]
[1757708251505,0.5415,4646.7,4646.2,3.2078]
[1757708251704,1.2899,4646.7,4646.6,0.3704]
[1757708252105,0.2349,4646.5,4646.2,3.2078]
[1757708252307,0.5415,4646.3,4646.2,4.2265]
[1757708252709,0.9027,4646.3,4646.2,3.9529]
[1757708252906,1.2899,4646.3,4646.2,3.9529]
[1757708253306,0.2349,4648.5,4647.4,1.0187]
[1757708253509,0.5415,4647.9,4647.5,4.2265]
[1757708253808,0.223,4648.3,4647.5,4.2265]
[1757708254009,0.606,4647.6,4647.5,4.2265]
[1757708254912,0.606,4647.6,4647.5,3.9529]
[1757708255114,1.5774,4647.6,4647.5,3.2078]
[1757708256119,0.5415,4647.4,4646.6,3.2078]
[1757708256405,0.2349,4647.5,4646.6,3.2078]
[1757708256711,1.5248,4647.0,4646.9,0.3704]
[1757708258417,2.08310952,4647.0,4646.9,0.3704]
[1757708259111,1.2899,4646.7,4646.6,3.5782]
[1757708259416,1.84857264,4646.7,4646.6,3.5782]
[1757708259610,1.84857264,4646.7,4646.6,3.2078]
[1757708259810,1.84857264,4646.7,4646.6,3.5782]
[1757708260012,0.2349,4646.5,4646.1,3.2078]
[1757708260317,0.2349,4646.5,4646.1,3.5782]
[1757708260318,1.2899,4646.2,4646.1,3.5782]
[1757708260810,0.5415,4646.2,4646.1,3.9529]
[1757708261016,0.9027,4646.4,4646.3,0.7451]
[1757708261211,1.10030517,4646.4,4646.3,1.0187]
[1757708261407,1.46150517,4646.4,4646.3,0.7451]
[1757708263321,1.84870517,4646.4,4646.3,0.7451]
[1757708263720,1.2899,4646.2,4646.1,3.2078]
[1757708264121,1.2899,4646.2,4646.1,3.5782]
[1757708264922,1.2899,4646.2,4646.1,3.9529]
[1757708266621,0.2349,4646.5,4646.1,3.9529]
[1757708266822,1.0932342,4646.4,4646.3,0.9964]
[1757708267023,1.4464342,4646.4,4646.3,0.7352]
[1757708268121,1.7960342,4646.4,4646.3,0.7352]
[1757708269024,1.4464342,4646.4,4646.3,0.7352]
[1757708269226,0.8876,4646.4,4646.3,0.9964]
[1757708269419,1.44628417,4646.4,4646.3,0.9964]
[1757708269819,1.44628417,4646.4,4646.3,0.7352]
[1757708270022,0.8876,4646.4,4646.3,0.7352]
[1757708270723,1.2372,4646.4,4646.3,0.7352]
[1757708271323,0.8876,4646.4,4646.3,0.7352]
[1757708271516,0.5344,4647.4,4646.8,0.7352]
[1757708271719,0.9177,4647.0,4646.9,0.3773]
[1757708272123,0.9177,4647.0,4646.9,0.7352]
[1757708272423,1.4521,4647.0,4646.9,0.7352]
[1757708272623,1.1025,4647.0,4646.9,0.7352]
[1757708275320,1.4521,4647.0,4646.9,0.7352]
[1757708277325,1.1025,4647.0,4646.9,0.7352]
[1757708277526,1.1025,4647.0,4646.9,0.9893]
[1757708277714,1.1025,4647.0,4646.9,0.7352]
[1757708279226,1.4786,4647.0,4646.9,0.7352]
[1757708279416,0.9442,4647.0,4646.8,3.2078]
[1757708279623,1.3244,4646.9,4646.8,3.2078]
[1757708282128,1.3244,4646.9,4646.8,3.5666]
[1757708282426,1.3244,4646.9,4646.8,3.9281]
[1757708283226,1.3244,4646.9,4645.8,3.2078]
[1757708283433,1.5458,4646.0,4645.9,0.7203]
[1757708284732,1.1697,4646.0,4645.9,0.9744]
[1757708285229,1.1697,4646.0,4645.9,0.7203]
[1757708285731,1.5458,4646.0,4645.9,0.7203]
[1757708286430,1.5458,4646.0,4645.8,3.2078]
[1757708286431,0.5782,4645.9,4645.8,3.2078]
[1757708286731,1.3244,4645.9,4645.8,3.2078]
[1757708288527,1.3244,4645.9,4645.8,3.9281]
[1757708288734,0.2214,4646.5,4646.3,0.7203]
[1757708288933,0.5782,4646.4,4646.3,0.9744]
[1757708289242,0.9483,4646.4,4646.3,4.1822]
[1757708289731,1.3244,4646.4,4646.3,3.9281]
[1757708289933,1.3244,4646.4,4646.3,3.5666]
[1757708292036,1.3244,4646.4,4646.3,3.2078]
[1757708296832,1.88539054,4646.4,4646.3,3.2078]
[1757708300241,2.10839054,4646.4,4646.3,3.2078]
[1757708309543,2.10839054,4646.4,4646.3,3.5666]
[1757708310445,1.13919054,4646.4,4646.3,3.9275]
[1757708310644,1.36219054,4646.4,4646.3,4.1625]
[1757708311145,2.07949054,4646.4,4646.3,3.9275]
[1757708311540,1.85649054,4646.4,4646.3,3.9275]
[1757708311837,2.07949054,4646.4,4646.3,3.9275]
[1757708317046,1.85649054,4646.4,4646.3,3.9275]
[1757708317252,2.07949054,4646.4,4646.3,3.9275]
[1757708318148,2.07949054,4646.4,4646.3,3.2078]
[1757708318345,0.9396,4646.0,4645.8,3.2078]
[1757708318548,1.50129054,4645.9,4645.8,3.2078]
[1757708318747,1.50129054,4645.9,4645.8,3.5784]
[1757708318943,2.03729054,4645.9,4645.8,3.5784]
[1757708319142,1.1048,4645.0,4644.9,0.7315]
[1757708319341,1.3278,4645.0,4644.9,0.7315]
[1757708319553,1.6986,4645.0,4644.9,0.7315]
[1757708320454,1.88250168,4645.0,4644.9,0.7315]
[1757708321058,1.88250168,4645.0,4644.9,0.3706]
[1757708321250,0.2223,4644.5,4644.4,0.3706]
[1757708321450,1.9077571,4644.5,4644.4,0.7315]
[1757708321851,2.4437571,4644.5,4644.4,0.7315]
[1757708322048,2.4437571,4644.5,4644.4,0.3706]
[1757708322251,1.9077571,4644.5,4643.8,3.2078]
[1757708322450,1.2533,4644.3,4644.2,0.3706]
[1757708322652,1.43720168,4644.3,4644.2,0.3706]
[1757708323159,1.66020168,4644.3,4644.2,0.7315]
[1757708324158,0.223,4644.3,4644.2,1.2905]
[1757708325849,2.67200168,4645.0,4644.9,0.7529]
[1757708326054,3.45524782,4645.0,4644.9,1.3063]
[1757708327348,4.19334782,4645.0,4644.9,0.9447]
[1757708327766,3.81024782,4645.0,4644.9,1.3063]
[1757708329061,3.23224782,4645.0,4644.9,1.3063]
[1757708329264,3.09584782,4645.0,4644.9,1.3063]
[1757708329951,2.53560168,4645.0,4644.9,1.3063]
[1757708330551,2.89500168,4645.0,4644.9,1.3063]
[1757708330959,2.53560168,4645.0,4644.9,1.3063]
[1757708332658,2.89500168,4645.0,4644.9,1.3063]
[1757708334159,3.25000168,4645.0,4644.9,1.3063]
[1757708335650,3.02700168,4645.0,4644.9,1.3063]
[1757708335854,3.25000168,4645.0,4644.9,1.3063]
[1757708339867,2.53560168,4645.0,4644.9,1.3063]
[1757708340565,2.92380168,4645.0,4644.9,1.3063]
[1757708343467,2.70080168,4645.0,4644.9,1.3063]
[1757708344071,2.92380168,4645.0,4644.9,1.3063]
[1757708344267,3.48417784,4645.0,4644.9,1.3063]
[1757708344461,3.26117784,4645.0,4644.9,1.3063]
[1757708344766,0.0645,4645.2,4644.9,1.3063]
[1757708344961,0.0645,4645.2,4645.1,1.3024]
[1757708345162,0.2875,4645.2,4645.1,1.3024]
[1757708345365,0.223,4645.2,4645.1,5.3024]
[1757708345566,0.223,4645.2,4645.1,5.51768]
[1757708345768,0.223,4645.2,4645.1,5.3024]
[1757708351286,0.6112,4645.2,4645.1,1.3024]
[1757708351580,1.3653,4645.2,4645.1,0.5433]
[1757708351878,0.7664,4644.7,4644.6,0.9175]
[1757708352084,1.3653,4644.7,4644.6,0.9175]
[1757708352282,0.9894,4644.7,4644.6,0.9175]
[1757708352481,0.9894,4644.7,4644.6,1.3024]
[1757708352683,1.55256971,4644.7,4644.6,1.3024]
[1757708353080,1.32956971,4644.7,4644.6,1.3024]
[1757708353282,1.55256971,4644.7,4644.6,1.3024]
[1757708354188,1.92846971,4644.7,4644.6,1.3024]
[1757708354386,1.92846971,4644.7,4643.8,3.2078]
[1757708354584,0.7664,4644.2,4644.1,0.9175]
[1757708354790,0.9894,4644.2,4644.1,1.3024]
[1757708355191,1.3653,4644.2,4644.1,1.3024]
[1757708356083,1.3653,4644.2,4644.1,0.5433]
[1757708356284,5.13636582,4644.2,4643.6,0.5433]
[1757708356588,0.3882,4643.7,4643.6,1.3024]
[1757708356785,0.223,4643.7,4643.6,0.7591]
[1757708356979,0.9894,4643.7,4643.6,0.7591]
[1757708357389,0.9894,4643.7,4643.6,1.3024]
[1757708358184,0.6112,4643.7,4643.6,1.3024]
[1757708358385,0.223,4643.7,4643.6,1.3024]
[1757708358886,3.2078,4644.2,4643.6,0.7591]
[1757708359091,0.223,4643.7,4643.6,1.3024]
[1757708359391,0.6112,4643.7,4643.6,1.3024]
[1757708359588,0.9894,4643.7,4643.6,1.3024]
[1757708360387,0.223,4643.7,4643.6,1.3024]
[1757708361389,0.223,4643.7,4643.6,0.7591]
[1757708361993,0.223,4643.7,4643.6,1.3024]
[1757708362789,0.9894,4643.7,4643.6,1.3024]
[1757708362988,1.3653,4643.7,4643.6,0.9175]
[1757708363389,0.9894,4643.7,4643.6,1.3024]
[1757708365704,0.223,4643.7,4643.6,1.3024]
[1757708367998,1.1303,4643.7,4643.6,0.5433]
[1757708368193,0.222,4643.7,4643.6,1.2751]
[1757708368898,0.5887,4643.7,4643.6,1.2751]
[1757708369798,0.9742,4643.7,4643.6,1.2751]
[1757708370999,0.222,4643.7,4643.6,1.2751]
[1757708375599,0.9742,4643.7,4643.6,0.5433]
[1757708375792,0.9742,4643.7,4643.6,1.2751]
[1757708375996,0.5887,4643.7,4643.6,1.2751]
[1757708376704,0.222,4643.7,4643.6,1.2751]
[1757708377601,0.9742,4643.7,4643.6,1.2751]
[1757708378796,0.5887,4643.7,4643.6,1.2751]
[1757708378997,0.222,4643.7,4643.6,1.2751]
[1757708380502,0.3667,4644.1,4644.0,1.4925]
[1757708380699,0.79271633,4644.1,4644.0,0.9595]
[1757708380901,1.15941633,4644.1,4644.0,0.9595]
[1757708381101,1.54491633,4644.1,4644.0,0.9595]
[1757708381302,1.90151633,4644.1,4644.0,0.7607]
[1757708381602,1.90151633,4644.1,4644.0,0.533]
[1757708381803,1.90151633,4644.1,4644.0,0.906]
[1757708382005,1.90151633,4644.1,4644.0,1.1337]
[1757708383305,1.54491633,4644.1,4644.0,1.1337]
[1757708383605,1.54491633,4644.1,4644.0,1.4925]
[1757708384511,1.90151633,4644.1,4644.0,1.4925]
[1757708384702,1.54491633,4644.1,4644.0,1.4925]
[1757708384903,1.90151633,4644.1,4644.0,0.533]
[1757708385107,1.90151633,4644.1,4644.0,1.1337]
[1757708385301,1.54491633,4644.1,4644.0,1.4925]
[1757708386507,1.15941633,4644.1,4644.0,1.4925]
[1757708388412,1.31571633,4644.1,4644.0,1.4925]
[1757708388607,1.53771633,4644.1,4644.0,1.4925]
[1757708389414,1.15941633,4644.1,4644.0,1.4925]
[1757708389808,0.93741633,4644.1,4644.0,1.4925]
[1757708390009,1.15941633,4644.1,4644.0,1.4925]
[1757708390210,1.53771633,4644.1,4644.0,1.4925]
[1757708390521,1.88221633,4644.1,4644.0,1.4925]
[1757708390710,1.88221633,4644.1,4644.0,1.1337]
[1757708390905,1.88221633,4644.1,4644.0,0.533]
[1757708391613,1.72631566,4644.1,4644.0,1.4823]
[1757708391813,1.72631551,4644.1,4644.0,1.4823]
[1757708393116,1.34801551,4644.1,4644.0,1.4823]
[1757708393515,1.72631551,4644.1,4644.0,1.4823]
[1757708396517,1.34801551,4644.1,4644.0,1.4823]
[1757708397214,1.84181551,4644.1,4644.0,1.4823]
[1757708397413,1.72631551,4644.1,4644.0,1.4823]
[1757708397613,1.72632178,4644.1,4644.0,1.4823]
[1757708397808,0.3375,4644.0,4643.6,0.5354]
[1757708398015,3.9188,4643.7,4643.6,0.8919]
[1757708398214,5.04901633,4643.7,4643.6,0.8919]
[1757708399515,4.21586633,4643.7,4643.1,0.5354]
[1757708399820,4.2563,4643.2,4643.1,0.5354]
[1757708400120,5.04901633,4643.2,4642.6,0.5354]
[1757708400314,1.0485,4642.7,4642.6,0.5354]
[1757708400510,1.0485,4642.7,4642.6,0.8919]
[1757708400511,1.50371633,4642.7,4642.6,0.8919]
[1757708400813,1.50371633,4642.7,4642.6,1.2465]
[1757708401018,5.04901633,4642.7,4642.6,0.5354]
[1757708401215,0.711,4642.0,4641.8,0.5354]
[1757708401520,1.15481633,4641.9,4641.8,1.2465]
[1757708401721,1.34175872,4641.9,4641.8,1.2465]
[1757708402223,1.69065872,4641.9,4641.8,1.2465]
[1757708402423,2.02815872,4641.9,4641.8,0.5354]
[1757708402619,1.80615872,4641.9,4641.8,0.5354]
[1757708402923,1.50371633,4641.9,4641.8,0.8919]
[1757708403125,1.69024311,4641.9,4641.8,0.8919]
[1757708403521,1.69024311,4641.9,4641.8,1.2465]
[1757708404120,2.02774311,4641.9,4641.8,0.5354]
[1757708404320,2.02774311,4641.9,4641.8,0.8919]
[1757708404826,1.69024311,4641.9,4641.8,0.8919]
[1757708405324,1.50371633,4641.9,4641.8,0.8919]
[1757708405529,1.68980819,4641.9,4641.8,0.8919]
[1757708406522,2.02730819,4641.9,4641.8,0.8919]
[1757708407022,1.68980819,4641.9,4641.8,0.8919]
[1757708407227,1.68980819,4641.9,4641.8,1.2465]
[1757708408223,1.50371633,4641.9,4641.8,1.2465]
[1757708408931,1.28171633,4641.9,4641.8,1.2465]
[1757708409230,1.50371633,4641.9,4641.8,1.2465]
[1757708409418,0.933,4641.9,4641.8,1.2465]
[1757708409624,2.05144277,4641.9,4641.8,0.5354]
[1757708409919,0.711,4641.7,4641.6,0.5354]
[1757708410125,5.03724277,4641.7,4641.6,0.5354]
[1757708410328,4.44211357,4641.7,4641.6,0.5354]
[1757708410529,4.44211357,4641.7,4641.6,0.8919]
[1757708411030,4.66411357,4641.7,4641.6,0.8919]
[1757708411529,4.66411357,4641.7,4640.8,0.5354]
[1757708411530,0.3375,4641.6,4640.8,0.5354]
[1757708411830,0.3375,4641.6,4641.1,0.8919]
[1757708411831,3.9188,4641.2,4641.1,0.8919]
[1757708412128,4.4783,4641.2,4641.1,0.5354]
[1757708412727,0.711,4640.7,4640.6,0.5354]
[1757708412918,4.4783,4640.7,4640.6,0.8919]
[1757708413119,3.7919,4640.7,4640.6,1.2465]
[1757708413335,4.1408,4640.7,4640.6,0.8919]
[1757708413527,4.1408,4640.7,4640.6,1.2465]
[1757708414430,4.4783,4640.7,4640.6,0.5354]
[1757708414732,4.1408,4640.7,4640.6,0.8919]
[1757708415539,4.4783,4640.7,4640.6,0.8919]
[1757708415727,4.4783,4640.7,4640.6,0.5354]
[1757708416232,1.0485,4640.2,4640.1,0.5354]
[1757708416429,1.2705,4640.2,4640.1,0.5354]
[1757708416629,1.2705,4640.2,4640.1,1.2465]
[1757708416630,0.933,4640.2,4640.1,1.2465]
[1757708418927,0.3621,4640.2,4640.1,0.7111]
[1757708419121,3.5699,4640.2,4640.1,0.7111]
[1757708419431,3.7919,4640.2,4640.1,0.7111]
[1757708419622,3.7919,4640.2,4640.1,1.2465]
[1757708420130,4.1408,4640.2,4640.1,1.2465]
[1757708420334,4.4783,4640.2,4640.1,0.8919]
[1757708421034,4.4783,4640.2,4640.1,0.5354]
[1757708421235,0.711,4639.6,4639.5,0.7504]
[1757708421423,0.933,4639.6,4639.5,1.1069]
[1757708421937,1.2705,4639.6,4638.5,0.215]
[1757708422129,0.711,4639.2,4639.1,0.3565]
[1757708422331,1.2705,4639.2,4639.1,0.8919]